bitfinex/quotes_ETHUSD_20250328
["timestamp","ask_amount","ask_price","bid_price","bid_amount"]
[1743173714296,5.27983,1894.0,1893.6,1.06435734]
[1743173714498,6.07691,1893.9,1893.5,33.17999]
[1743173714680,2.19564603,1893.9,1893.5,27.899]
[1743173714880,7.47586603,1893.9,1893.5,27.899]
[1743173715084,0.7905,1893.7,1893.4,5.28137]
[1743173715281,0.7905,1893.7,1893.5,1.03475074]
[1743173715863,6.07125,1893.7,1893.5,1.03475074]
[1743173716104,2.18895202,1893.7,1893.5,1.03475074]
[1743173716304,2.18895202,1893.7,1893.4,5.2814]
[1743173716466,7.46962202,1893.7,1893.3,10.56332]
[1743173717193,2.18895202,1893.7,1893.4,5.2814]
[1743173717373,0.7905,1893.7,1893.4,5.2814]
[1743173717900,0.7905,1893.7,1893.5,5.28113]
[1743173718107,0.7905,1893.7,1893.4,5.2814]
[1743173718609,0.7905,1893.7,1893.5,5.28121]
[1743173718809,0.7905,1893.7,1893.4,5.28134]
[1743173719006,0.7905,1893.7,1893.3,10.56337]
[1743173719191,0.7905,1893.7,1893.4,5.28148]
[1743173719396,0.7905,1893.7,1893.1,6.33862127]
[1743173719582,0.7905,1893.7,1893.4,5.2814]
[1743173720166,6.07127,1893.7,1893.3,5.28166]
[1743173720372,6.07127,1893.7,1893.2,5.28191]
[1743173720604,6.07127,1893.7,1893.3,5.28177]
[1743173720800,11.35214,1893.7,1893.3,5.28177]
[1743173721017,1.135214,1893.6,1893.3,5.28177]
[1743173721187,6.8005,1893.7,1893.3,5.28165]
[1743173721188,12.0812,1893.7,1893.3,5.28165]
[1743173721507,6.8005,1893.7,1893.4,5.2815]
[1743173721687,6.8005,1893.7,1893.3,5.28175]
[1743173722001,6.8005,1893.7,1893.4,5.28134]
[1743173722572,6.8005,1893.7,1893.4,5.28142]
[1743173722797,8.008591,1893.7,1893.4,10.56268]
[1743173723203,8.008591,1893.7,1893.4,5.28126]
[1743173724605,8.008591,1893.7,1893.4,10.56258]
[1743173724810,6.8005,1893.7,1893.5,5.2811]
[1743173724997,6.01,1893.7,1893.6,5.28094]
[1743173725709,6.01,1893.7,1893.5,5.2811]
[1743173726010,6.01,1893.7,1893.5,5.28105]
[1743173726206,6.01,1893.7,1893.4,10.56294]
[1743173726376,6.01,1893.7,1893.4,5.28137]
[1743173726572,6.01,1893.7,1893.6,5.28094]
[1743173726900,6.0883,1893.9,1893.5,5.28109]
[1743173727204,6.0883,1893.9,1893.5,10.56209]
[1743173727574,6.0883,1893.9,1893.5,5.281]
[1743173727775,0.8081,1893.9,1893.6,5.2809]
[1743173728003,0.8081,1893.9,1893.6,5.28082]
[1743173728809,0.8081,1893.9,1893.6,10.56163]
[1743173729008,0.8081,1893.9,1893.8,5.28038]
[1743173729195,9.7842,1894.0,1893.8,5.28038]
[1743173730406,6.7842,1894.0,1893.8,5.28025]
[1743173730602,6.7842,1894.0,1893.7,5.28051]
[1743173730820,6.7842,1894.0,1893.8,5.28023]
[1743173731105,6.7842,1894.0,1893.7,5.28051]
[1743173731302,14.70805502,1894.0,1893.6,5.2809]
[1743173731603,16.17886052,1894.0,1893.6,5.2809]
[1743173731787,16.17886052,1894.0,1893.6,5.28076]
[1743173732308,5.28019,1893.9,1893.6,5.28076]
[1743173732525,16.17886052,1894.0,1893.6,10.56156]
[1743173733021,5.28014,1893.9,1893.6,5.28076]
[1743173733380,5.28014,1893.9,1893.5,10.56228]
[1743173733686,13.5349655,1894.0,1893.6,5.28092]
[1743173733892,21.45888052,1894.0,1893.6,5.28092]
[1743173734105,21.45888052,1894.0,1893.5,5.28111]
[1743173734106,5.28012,1893.9,1893.5,5.28111]
[1743173734320,16.17886052,1894.0,1892.9,5.28275]
[1743173734321,5.28188,1893.3,1892.9,5.28275]
[1743173734482,0.8261,1893.2,1892.9,1.06990791]
[1743173734677,6.10825,1893.2,1892.8,38.46521]
[1743173734888,6.10825,1893.2,1892.8,33.18206]
[1743173735083,5.28237,1893.1,1892.8,27.899]
[1743173735322,6.10825,1893.2,1892.8,33.18215]
[1743173735987,11.39051,1893.2,1892.8,33.18215]
[1743173736187,11.39051,1893.2,1892.8,33.18199]
[1743173736188,6.10825,1893.2,1892.8,33.18199]
[1743173736712,5.28243,1893.1,1892.8,27.899]
[1743173737114,11.39049,1893.2,1892.8,33.18214]
[1743173737408,5.28236,1893.1,1892.8,27.899]
[1743173737928,5.28236,1893.1,1892.8,33.18217]
[1743173738131,17.40052,1893.2,1892.8,33.18217]
[1743173738327,5.28245,1893.1,1892.8,27.899]
[1743173738719,5.28245,1893.1,1892.8,33.18217]
[1743173738922,14.16275303,1893.2,1892.8,38.46517]
[1743173739832,14.16275303,1893.2,1892.9,5.28288]
[1743173740141,14.16275303,1893.2,1892.8,33.182]
[1743173740426,8.88060303,1893.2,1892.8,27.899]
[1743173740600,17.4006,1893.2,1892.8,33.18207]
[1743173741038,5.28237,1893.1,1892.8,33.18207]
[1743173741189,6.8361,1893.2,1893.0,5.28248]
[1743173741384,6.01,1893.2,1893.0,5.28248]
[1743173741615,3.0,1893.3,1893.0,10.56499]
[1743173741820,3.0,1893.3,1893.0,5.28248]
[1743173741998,3.0,1893.3,1893.0,10.56497]
[1743173742411,3.0,1893.3,1893.0,5.28248]
[1743173742645,8.28187,1893.3,1892.9,5.28273]
[1743173742845,8.28187,1893.3,1893.0,5.2826]
[1743173743057,3.0,1893.3,1893.0,5.28248]
[1743173743209,3.0,1893.3,1893.1,5.28228]
[1743173743411,8.28185,1893.3,1893.0,5.28248]
[1743173743711,5.28207,1893.2,1892.8,38.46516]
[1743173744022,5.28207,1893.2,1892.9,5.28287]
[1743173744724,3.4524998,1893.1,1892.4,0.7842]
[1743173744957,6.0979,1892.8,1892.5,5.28385]
[1743173745123,6.0979,1892.8,1892.4,10.56844]
[1743173745458,11.38118,1892.8,1892.4,5.28419]
[1743173745959,6.09784,1892.8,1892.5,5.28388]
[1743173746257,6.09784,1892.8,1892.5,5.28383]
[1743173746258,0.8146,1892.8,1892.5,5.28383]
[1743173746854,0.8146,1892.8,1892.5,10.56771]
[1743173747155,1.42435,1892.8,1892.4,5.28403]
[1743173747314,6.70767,1892.8,1892.4,5.28403]
[1743173747716,5.28347,1892.7,1892.4,5.28403]
[1743173748126,6.70767,1892.8,1892.4,10.56815]
[1743173748346,6.70763,1892.8,1892.4,5.28417]
[1743173748513,0.670763,1892.7,1892.4,5.28417]
[1743173749342,6.70763,1892.8,1892.4,10.56833]
[1743173749543,6.70763,1892.8,1892.4,5.28416]
[1743173749716,6.70763,1892.8,1892.4,10.56834]
[1743173749940,11.99102,1892.8,1892.4,5.28416]
[1743173750423,12.71763,1892.8,1892.4,10.56834]
[1743173750621,12.71763,1892.8,1892.5,5.28399]
[1743173751966,7.43435,1892.8,1892.5,10.56784]
[1743173752124,7.43435,1892.8,1892.5,5.28385]
[1743173752325,12.71754,1892.8,1892.5,5.28385]
[1743173752544,7.43435,1892.8,1892.5,10.5677]
[1743173752867,12.71765,1892.8,1892.5,5.28385]
[1743173753054,12.71765,1892.8,1892.4,10.56842]
[1743173753253,12.71765,1892.8,1892.5,5.284]
[1743173753671,7.43435,1892.8,1892.5,5.28385]
[1743173754050,7.43435,1892.8,1892.4,5.28428]
[1743173754051,6.8246,1892.8,1892.6,5.28349]
[1743173754251,5.28383,1892.6,1892.3,5.28446]
[1743173754442,5.28362,1892.7,1892.3,10.5689]
[1743173754642,5.28362,1892.7,1892.3,10.56886]
[1743173754842,7.28655498,1892.7,1892.3,10.56886]
[1743173755038,2.00293498,1892.7,1892.4,5.28428]
[1743173755272,14.7457298,1892.8,1892.4,5.28428]
[1743173755576,5.27287,1892.7,1892.4,5.28428]
[1743173755869,12.10783,1892.8,1892.5,5.28398]
[1743173756239,17.39119,1892.8,1892.4,10.56834]
[1743173756443,12.10783,1892.8,1892.4,5.28416]
[1743173756870,2.64741518,1892.7,1892.4,5.28416]
[1743173757074,7.93095518,1892.7,1892.4,5.28416]
[1743173757277,2.64741518,1892.7,1892.4,10.56836]
[1743173757469,2.64741518,1892.7,1892.4,5.28416]
[1743173757675,2.64741518,1892.7,1892.4,10.56834]
[1743173757845,2.64741518,1892.7,1892.5,5.28401]
[1743173758048,2.64741518,1892.7,1892.5,5.28384]
[1743173758366,2.64741518,1892.7,1892.4,5.28425]
[1743173758578,2.64741518,1892.7,1892.4,10.56841]
[1743173759136,2.64741518,1892.7,1892.4,5.28416]
[1743173759575,7.93086518,1892.7,1892.4,5.28416]
[1743173759737,2.64741518,1892.7,1892.4,10.56837]
[1743173759932,2.64741518,1892.7,1892.4,5.28416]
[1743173760148,7.93098518,1892.7,1892.4,5.28416]
[1743173760880,7.93098518,1892.7,1892.4,10.5683]
[1743173761038,2.64741518,1892.7,1892.4,5.28414]
[1743173761976,7.93096518,1892.7,1892.4,5.28414]
[1743173762280,5.28386,1892.6,1892.3,5.28452]
[1743173762448,0.7964,1892.5,1892.2,10.56956]
[1743173762956,8.72792518,1892.5,1892.2,5.28475]
[1743173763344,2.64741518,1892.3,1892.1,33.26309]
[1743173763542,5.28485,1892.2,1892.1,0.05]
[1743173763966,0.7901,1892.2,1892.1,0.05]
[1743173764271,9.07495,1892.2,1892.1,0.05]
[1743173765039,11.75026518,1892.2,1892.1,0.05]
[1743173766272,20.95768036,1892.2,1892.1,0.05]
[1743173766453,3.44471518,1891.6,1891.2,0.7968]
[1743173766652,8.73137518,1891.6,1891.2,6.08443]
[1743173766966,2.64741518,1891.4,1891.1,0.8066]
[1743173767182,2.64741518,1891.3,1891.0,5.2882]
[1743173767359,7.93464518,1891.4,1891.0,5.2882]
[1743173767564,7.93546518,1891.1,1890.7,6.09641]
[1743173768069,7.93546518,1891.1,1890.7,5.28901]
[1743173768257,2.64741518,1891.1,1890.7,5.28888]
[1743173768457,2.64741518,1891.1,1890.8,10.57714]
[1743173768665,8.71234518,1891.2,1890.7,5.28902]
[1743173768845,5.28807,1891.1,1890.7,10.5779]
[1743173769046,5.28823,1891.0,1890.6,6.34016179]
[1743173769245,5.28823,1891.0,1890.5,33.23034]
[1743173769246,8.71418518,1890.8,1890.5,33.23034]
[1743173769476,8.71418518,1890.8,1890.5,5.28934]
[1743173769663,2.64741518,1890.6,1890.1,0.05]
[1743173769863,7.93738518,1890.4,1890.1,0.05]
[1743173770066,2.64741518,1890.4,1890.1,5.3407]
[1743173770378,7.93731518,1890.4,1890.1,0.05]
[1743173770548,2.64741518,1890.4,1890.1,0.05]
[1743173770755,6.01,1890.6,1890.1,0.05]
[1743173771081,6.611,1890.6,1890.3,5.28996]
[1743173771572,6.01,1890.6,1890.4,5.28977]
[1743173771778,6.01,1890.6,1890.5,5.2896]
[1743173771941,3.0,1890.7,1890.4,10.57949]
[1743173772344,3.0,1890.7,1890.5,5.2896]
[1743173773077,3.0,1890.7,1890.4,5.28969]
[1743173773251,3.72919684,1890.7,1890.4,10.57938]
[1743173773453,3.0,1890.7,1890.5,5.28958]
[1743173773954,6.01,1890.8,1890.6,5.28918]
[1743173775384,6.01,1890.8,1890.5,5.28959]
[1743173775780,6.01,1890.8,1890.5,5.2895]
[1743173775955,13.94617518,1890.8,1890.5,5.2895]
[1743173776154,10.5808987,1890.8,1890.5,5.28944]
[1743173776359,7.93348352,1890.8,1890.6,5.28918]
[1743173776675,7.93348352,1890.8,1890.6,10.57837]
[1743173776676,6.01,1890.8,1890.6,10.57837]
[1743173776884,0.7706,1890.7,1890.5,5.28939]
[1743173777268,0.7706,1890.7,1890.6,5.28932]
[1743173777572,6.01,1890.8,1890.5,5.28939]
[1743173777779,6.01,1890.8,1890.6,5.2893]
[1743173777961,6.01,1890.8,1890.7,5.28904]
[1743173778168,6.40591518,1891.1,1890.9,5.28842]
[1743173778892,0.7585,1891.1,1891.0,5.2882]
[1743173779093,12.00023452,1891.2,1890.9,5.28842]
[1743173779094,12.16902452,1891.2,1890.9,5.28842]
[1743173779280,9.5286497,1891.2,1890.9,5.28842]
[1743173779476,6.01,1891.2,1890.8,5.28872]
[1743173779784,5.28793,1891.1,1890.8,5.28862]
[1743173780392,5.67940161,1891.1,1890.7,6.04204]
[1743173780583,5.67940161,1891.1,1890.5,5.28934]
[1743173780584,7.93640518,1890.8,1890.5,5.28948]
[1743173780892,4.0495887,1890.8,1890.5,10.57891]
[1743173781271,4.0495887,1890.8,1890.5,5.28943]
[1743173781467,9.3383587,1890.8,1890.4,6.05255]
[1743173781670,5.28919,1890.7,1890.3,5.29005]
[1743173782058,5.28919,1890.7,1890.3,10.58004]
[1743173782290,2.64741518,1890.6,1890.3,5.28999]
[1743173782497,1.46275787,1890.7,1890.4,5.28974]
[1743173782706,5.28939,1890.6,1890.3,5.29004]
[1743173783360,6.75198787,1890.7,1890.3,5.29004]
[1743173783694,12.04120787,1890.7,1890.3,5.28996]
[1743173783867,1.20412079,1890.6,1890.3,5.28996]
[1743173784195,5.28922,1890.7,1890.3,10.57996]
[1743173784364,6.08313,1890.6,1890.3,5.28996]
[1743173784868,8.73054518,1890.6,1890.3,5.28996]
[1743173785068,3.44111518,1890.6,1890.3,5.28996]
[1743173785394,4.8430747,1890.6,1890.3,5.28996]
[1743173785901,10.1324547,1890.6,1890.2,10.58063]
[1743173786360,10.1324547,1890.6,1890.3,5.29014]
[1743173786561,10.1324547,1890.6,1890.2,5.2903]
[1743173786763,10.1324547,1890.6,1890.2,10.58055]
[1743173786963,1.01324547,1890.5,1890.2,10.58055]
[1743173787359,5.19565952,1890.6,1890.4,5.28982]
[1743173787560,5.58547166,1890.6,1890.3,5.28997]
[1743173787781,8.23288684,1890.6,1890.3,5.28997]
[1743173787996,13.52231684,1890.6,1890.2,5.2904]
[1743173788194,6.64184168,1890.5,1890.2,5.2904]
[1743173789406,9.28925686,1890.5,1890.1,5.34058]
[1743173789704,3.99964686,1890.5,1890.2,5.29022]
[1743173789887,9.28926686,1890.5,1890.2,5.29022]
[1743173790061,3.99964686,1890.5,1890.2,10.5805]
[1743173790263,5.58547166,1890.6,1890.3,5.28991]
[1743173790571,6.8074,1890.8,1890.2,0.7704]
[1743173790876,6.01,1890.8,1890.5,5.28935]
[1743173791390,5.28935,1890.6,1890.3,5.29005]
[1743173791592,0.7824,1890.7,1890.4,5.28976]
[1743173791800,0.7824,1890.7,1890.1,5.3407]
[1743173791967,8.65741518,1890.8,1890.6,5.28932]
[1743173792166,8.65741518,1890.8,1890.5,5.28945]
[1743173792167,6.01,1890.8,1890.5,5.28945]
[1743173792496,2.64741518,1890.6,1890.4,5.28984]
[1743173792668,2.64741518,1890.6,1890.4,5.28975]
[1743173792875,8.65741518,1890.8,1890.5,5.28934]
[1743173793102,10.9459307,1890.8,1890.5,5.28934]
[1743173793301,10.9459307,1890.8,1890.2,5.29019]
[1743173793512,10.9459307,1890.8,1890.5,5.28938]
[1743173793795,2.64741518,1890.6,1890.4,5.2897]
[1743173793990,0.7632,1890.7,1890.4,5.28966]
[1743173794203,10.9459307,1890.8,1890.5,5.28939]
[1743173794367,10.9459307,1890.8,1890.5,10.57879]
[1743173794981,2.64741518,1890.6,1890.3,5.28997]
[1743173795261,3.43311518,1890.6,1890.4,5.28975]
[1743173795691,0.7857,1890.6,1890.4,10.57947]
[1743173796110,1.09459307,1890.7,1890.5,5.28944]
[1743173796300,9.07191552,1890.8,1890.6,5.2892]
[1743173796487,9.07191552,1890.8,1890.7,5.28904]
[1743173796675,9.7834,1890.8,1890.6,5.2892]
[1743173797276,12.43081518,1890.8,1890.5,5.28957]
[1743173797801,9.43081518,1890.8,1890.6,5.2892]
[1743173798007,14.71966518,1890.8,1890.4,5.2896]
[1743173798303,2.64741518,1890.6,1890.4,5.2896]
[1743173798500,2.64741518,1890.6,1890.3,5.29015]
[1743173798691,0.8039,1890.5,1890.2,5.29028]
[1743173799186,6.09359,1890.5,1890.1,5.34057]
[1743173799395,6.09359,1890.5,1890.2,5.29035]
[1743173799600,3.25677418,1890.4,1890.1,5.34057]
[1743173799971,3.25677418,1890.4,1890.1,10.63115]
[1743173800171,3.25677418,1890.4,1890.1,5.34057]
[1743173800501,0.8039,1890.5,1890.2,10.58043]
[1743173800709,3.45131518,1890.5,1890.2,5.29018]
[1743173801002,3.45131518,1890.5,1890.2,10.58046]
[1743173801201,3.45131518,1890.5,1890.2,10.58047]
[1743173801374,3.45131518,1890.5,1890.2,5.29018]
[1743173801697,4.66553108,1890.5,1890.2,5.29018]
[1743173802002,4.66553108,1890.5,1890.2,10.5805]
[1743173802308,4.66553108,1890.5,1890.1,5.34068]
[1743173802493,9.95526108,1890.5,1890.1,10.63125]
[1743173802689,9.95526108,1890.5,1890.2,5.29041]
[1743173802898,0.99552611,1890.4,1890.2,5.29028]
[1743173803203,4.66553108,1890.5,1890.2,5.29028]
[1743173803907,2.0181159,1890.5,1890.2,5.29028]
[1743173804109,8.69078378,1890.6,1890.3,5.29001]
[1743173804403,3.40142378,1890.6,1890.4,5.28962]
[1743173804769,3.40142378,1890.6,1890.3,5.29012]
[1743173804998,3.40142378,1890.6,1890.3,5.28996]
[1743173805594,3.40142378,1890.6,1890.3,10.57997]
[1743173806132,10.04975633,1890.6,1890.3,5.28996]
[1743173806902,5.28964,1890.5,1890.2,5.29041]
[1743173807099,7.93705518,1890.5,1890.1,5.34057]
[1743173807300,0.8019,1890.4,1890.1,10.6311]
[1743173807676,0.8019,1890.4,1890.2,10.58074]
[1743173807876,0.8019,1890.4,1890.2,5.29031]
[1743173808104,1.67580152,1890.4,1890.2,5.29031]
[1743173808505,10.04965633,1890.6,1890.2,5.29031]
[1743173808506,4.76029633,1890.6,1890.3,5.29016]
[1743173808881,10.04972633,1890.6,1890.2,5.29031]
[1743173809076,5.28964,1890.5,1890.2,5.29031]
[1743173809310,7.93768518,1890.3,1890.1,0.05]
[1743173809485,15.64420852,1890.2,1890.1,0.05]
[1743173809687,15.64420852,1890.2,1889.4,0.1136845]
[1743173809688,5.2924,1889.5,1889.4,0.1136845]
[1743173809889,2.64741518,1889.5,1889.4,0.1136845]
[1743173810221,13.89981518,1889.5,1889.4,0.1136845]
[1743173810431,5.96,1889.5,1889.4,0.1136845]
[1743173812010,6.556,1889.5,1889.4,0.1136845]
[1743173812228,10.02761518,1889.5,1889.4,0.1136845]
[1743173812418,15.32001518,1889.5,1889.4,0.1136845]
[1743173813228,18.32001518,1889.5,1889.4,0.1136845]
[1743173814190,18.70901388,1889.5,1889.4,0.1136845]
[1743173814727,8.96,1889.5,1889.4,5.4063645]
[1743173814923,5.96,1889.5,1889.4,5.4063645]
[1743173815284,9.38301518,1889.7,1889.4,10.6988945]
[1743173815513,8.60741518,1889.7,1889.4,5.4062145]
[1743173815782,8.60741518,1889.7,1889.5,5.29229]
[1743173816004,9.9973137,1889.7,1889.5,5.29229]
[1743173816587,9.9973137,1889.7,1889.4,5.4062745]
[1743173816782,9.9973137,1889.7,1889.4,10.6988345]
[1743173817015,7.75704478,1889.7,1889.4,5.4062445]
[1743173817803,7.75704478,1889.7,1889.4,10.6988045]
[1743173818001,7.75704478,1889.7,1889.4,5.4062345]
[1743173818226,0.77570448,1889.6,1889.4,5.4062345]
[1743173818424,0.77570448,1889.6,1889.4,5.4061745]
[1743173818624,7.75704478,1889.7,1889.4,5.4061745]
[1743173819716,7.75704478,1889.7,1889.4,10.6986845]
[1743173819925,7.75704478,1889.7,1889.4,5.4061745]
[1743173820121,13.04890478,1889.7,1889.4,5.4061745]
[1743173820336,1.30489048,1889.6,1889.4,0.1136845]
[1743173820507,3.0,1889.5,1889.4,0.1136845]
[1743173820833,10.93990762,1889.5,1889.4,0.1136845]
[1743173821034,16.07190762,1889.5,1889.4,0.1136845]
[1743173821335,13.4244,1889.5,1889.4,0.1136845]
[1743173821535,15.50838505,1889.5,1889.4,0.1136845]
[1743173822036,10.21598505,1889.5,1889.4,0.1136845]
[1743173822333,15.50838505,1889.5,1889.4,0.1136845]
[1743173823704,16.82508505,1889.5,1889.4,0.1136845]
[1743173824352,22.78508505,1889.5,1889.4,0.1136845]
[1743173825856,23.87209343,1889.5,1889.4,0.1136845]
[1743173828933,22.23508505,1889.5,1889.4,0.1136845]
[1743173829833,17.10308505,1889.5,1889.4,0.1136845]
[1743173830045,22.22908505,1889.5,1889.4,0.1136845]
[1743173831073,22.77908505,1889.5,1889.4,0.1136845]
[1743173831670,25.43559267,1889.5,1889.4,0.1136845]
[1743173838993,25.44514896,1889.5,1889.4,0.1136845]
[1743173841100,22.78808505,1889.5,1889.4,0.1136845]
[1743173841965,22.76908505,1889.5,1889.4,0.1136845]
[1743173842346,21.45238505,1889.5,1889.4,0.1136845]
[1743173842682,22.00238505,1889.5,1889.4,0.1136845]
[1743173843049,16.3674,1889.5,1889.4,0.1136845]
[1743173843466,11.075,1889.5,1889.4,0.1136845]
[1743173843653,14.075,1889.5,1889.4,0.1136845]
[1743173843854,19.3674,1889.5,1889.4,0.1136845]
[1743173844088,11.075,1889.5,1889.4,0.1136845]
[1743173844286,14.075,1889.5,1889.4,0.1136845]
[1743173844580,5.96,1889.5,1889.4,0.1136845]
[1743173844789,8.96,1889.5,1889.4,0.1136845]
[1743173845283,5.96,1889.5,1889.4,5.4063645]
[1743173845463,5.96,1889.5,1889.4,7.25538595]
[1743173846399,5.96,1889.8,1889.7,6.08914]
[1743173846890,5.96,1889.8,1889.7,0.7973]
[1743173847883,11.25156,1889.8,1889.7,0.7973]
[1743173848069,12.90586,1889.8,1889.7,0.7973]
[1743173848276,3.0,1889.7,1889.5,0.7865]
[1743173849179,3.0,1889.7,1889.5,6.07879]
[1743173849353,3.0,1889.7,1889.5,6.07874]
[1743173849685,5.96,1889.8,1889.6,5.29212]
[1743173849880,5.96,1889.8,1889.7,5.29184]
[1743173850090,3.0,1890.0,1889.7,5.29184]
[1743173850276,3.0,1890.0,1889.7,10.5835]
[1743173850879,3.0,1890.0,1889.6,0.607862]
[1743173850880,11.084,1890.1,1889.8,5.29146]
[1743173851205,11.084,1890.1,1889.9,0.787]
[1743173851688,2.65706391,1890.0,1889.8,5.29144]
[1743173852587,2.65706391,1890.0,1889.7,6.07884]
[1743173852789,2.65706391,1890.0,1889.7,6.07871]
[1743173852984,2.65706391,1890.0,1889.7,6.07862]
[1743173853287,2.65706391,1890.0,1889.8,5.29149]
[1743173853493,4.19858094,1890.0,1889.8,5.29149]
[1743173853786,1.54151703,1890.0,1889.9,5.29128]
[1743173853989,11.084,1890.1,1889.9,5.29117]
[1743173855280,11.084,1890.1,1889.8,5.29156]
[1743173855487,2.65706391,1890.0,1889.7,6.0787]
[1743173855691,2.65706391,1890.0,1889.8,5.29155]
[1743173855855,9.9911703,1890.0,1889.8,5.29155]
[1743173856062,3.0,1889.9,1889.7,6.0787]
[1743173856294,3.0,1889.9,1889.7,11.37038]
[1743173857212,3.0,1889.9,1889.6,5.29197]
[1743173857498,3.0,1889.9,1889.7,5.29184]
[1743173857703,0.3,1889.8,1889.7,5.29184]
[1743173858361,1.33609692,1889.8,1889.7,5.29184]
[1743173858679,1.03609692,1889.8,1889.7,5.29184]
[1743173859697,1.03609692,1889.8,1889.6,5.292]
[1743173859994,1.03609692,1889.8,1889.5,6.11328]
[1743173860495,1.03609692,1889.8,1889.5,11.4055]
[1743173861090,1.03609692,1889.8,1889.6,5.29201]
[1743173861464,1.03609692,1889.8,1889.6,5.29197]
[1743173862214,1.43970661,1889.8,1889.6,5.29197]
[1743173863315,1.43970661,1889.8,1889.4,0.1136845]
[1743173863316,8.29221,1889.6,1889.4,0.1136845]
[1743173863496,22.01327391,1889.6,1889.4,0.1136845]
[1743173863723,14.064,1889.6,1889.4,0.1136845]
[1743173865914,5.96,1889.6,1889.5,6.1061]
[1743173866117,5.96,1889.6,1889.5,0.8137]
[1743173866493,5.96,1889.6,1889.5,6.1061]
[1743173869302,5.96,1889.6,1889.5,0.8137]
[1743173869890,5.96,1889.6,1889.5,6.1061]
[1743173871026,5.96,1889.6,1889.5,0.8137]
[1743173871535,5.96,1889.6,1889.5,6.1061]
[1743173872099,5.96,1889.6,1889.5,0.8137]
[1743173873532,5.29185,1889.7,1889.5,0.8137]
[1743173874133,14.25158,1889.8,1889.5,6.10595]
[1743173874333,19.54333,1889.8,1889.5,0.8137]
[1743173875131,21.6045614,1889.8,1889.5,0.8137]
[1743173875496,21.6045814,1889.8,1889.5,0.8137]
[1743173875716,21.6046014,1889.8,1889.5,0.8137]
[1743173875911,3.0,1889.8,1889.6,5.29189]
[1743173876436,3.0,1889.8,1889.5,11.39829]
[1743173876737,3.0,1889.8,1889.5,6.10595]
[1743173877103,13.58335,1889.8,1889.5,0.8137]
[1743173877529,5.29191,1889.7,1889.5,0.8137]
[1743173877738,8.29159,1889.8,1889.5,0.8137]
[1743173878042,5.29192,1889.7,1889.5,0.8137]
[1743173878600,9.725972,1889.8,1889.5,0.8137]
[1743173879048,5.29212,1889.6,1889.4,0.1136845]
[1743173879247,5.2924,1889.5,1889.4,0.1136845]
[1743173879408,13.16307839,1889.5,1889.4,0.1136845]
[1743173880343,5.96,1889.5,1889.4,0.1136845]
[1743173880531,5.96,1889.5,1889.4,0.8688845]
[1743173881109,5.96,1889.5,1889.4,6.1615645]
[1743173885458,5.96,1889.9,1889.7,0.8209]
[1743173885827,11.25142,1889.9,1889.7,0.8209]
[1743173886023,5.96,1889.9,1889.8,5.29156]
[1743173886224,11.25097,1890.1,1889.7,6.723923]
[1743173886537,5.29174,1889.8,1889.5,0.8073]
[1743173886858,10.58355,1889.8,1889.5,0.8073]
[1743173887057,5.29174,1889.8,1889.4,11.5191545]
[1743173887239,5.29187,1889.7,1889.4,6.2266145]
[1743173887559,5.29222,1889.6,1889.4,0.1136845]
[1743173887948,7.94946391,1889.5,1889.4,0.1136845]
[1743173888125,11.49946391,1889.5,1889.4,0.1136845]
[1743173888325,12.32536391,1889.5,1889.4,0.1136845]
[1743173888526,14.65607387,1889.5,1889.4,0.1136845]
[1743173889049,10.62310996,1889.5,1889.4,0.1136845]
[1743173889462,13.28017387,1889.5,1889.4,0.1136845]
[1743173889662,14.62657387,1889.5,1889.4,0.1136845]
[1743173891151,20.58657387,1889.5,1889.4,0.1136845]
[1743173891528,25.68457387,1889.5,1889.4,0.1136845]
[1743173891730,25.68457387,1889.5,1889.4,4.5e-06]
[1743173893059,23.02750996,1889.5,1889.4,4.5e-06]
[1743173893268,24.11103797,1889.5,1889.4,4.5e-06]
[1743173897862,24.10203797,1889.5,1889.4,4.5e-06]
[1743173899969,22.22510996,1889.5,1889.4,4.5e-06]
[1743173900370,22.22210996,1889.5,1889.4,4.5e-06]
[1743173900551,17.13310996,1889.5,1889.4,4.5e-06]
[1743173902483,16.58310996,1889.5,1889.4,4.5e-06]
[1743173902686,5.96,1889.5,1889.4,0.7977045]
[1743173902893,5.96,1889.7,1889.4,6.0903845]
[1743173903251,5.96,1889.7,1889.4,6.0902345]
[1743173903682,5.96,1889.7,1889.5,5.29225]
[1743173903884,5.96,1889.7,1889.5,10.5845]
[1743173904183,5.96,1889.7,1889.5,5.29225]
[1743173904370,5.96,1889.7,1889.6,0.7689]
[1743173906488,11.80102,1890.0,1889.6,0.7689]
[1743173906675,5.29134,1889.9,1889.6,6.06084]
[1743173906994,5.29172,1889.8,1889.6,0.7689]
[1743173907283,13.24058391,1889.8,1889.6,0.7689]
[1743173907488,13.24055391,1889.8,1889.6,0.7689]
[1743173907863,7.94878391,1889.8,1889.6,0.7689]
[1743173908262,13.24058391,1889.8,1889.6,0.7689]
[1743173908573,5.2924,1889.5,1889.4,4.5e-06]
[1743173908968,5.29223,1889.6,1889.4,4.5e-06]
[1743173909154,10.58457,1889.6,1889.4,4.5e-06]
[1743173909585,5.29223,1889.6,1889.4,4.5e-06]
[1743173909886,10.58453,1889.6,1889.4,4.5e-06]
[1743173910089,7.25709523,1889.6,1889.4,4.5e-06]
[1743173910304,7.25709523,1889.6,1889.4,5.2925245]
[1743173910305,1.96486523,1889.6,1889.4,5.2925245]
[1743173910593,5.29187,1889.7,1889.5,0.8324]
[1743173911695,16.54388,1889.7,1889.5,0.8324]
[1743173912189,16.5439,1889.7,1889.5,0.8324]
[1743173912493,11.25187,1889.7,1889.5,0.8324]
[1743173912688,5.29212,1889.6,1889.5,0.8324]
[1743173913098,11.25187,1889.7,1889.5,0.8324]
[1743173914197,16.5439,1889.7,1889.5,0.8324]